Cogmind - Beta 13 @@@ ROGUE MODE // 2024.04.06 @ 16:08:32 Player: LEWiKK Result: Destroyed by G-34 Mercenary with Small Laser Performance ------------- Evolutions (1) 500 Regions Visited (3) 600 Robots Destroyed (68) 340 Value Destroyed (1959) 1959 Prototype IDs (0) 0 Alien Tech Used (0) 0 Bonus (-328) -328 TOTAL SCORE: 3071 Bonus ------- High Alert Combat Kills 35 Friendly Fire -363 Cogmind --------- Core Integrity 0/400 Matter 292/300 Energy 94/100 System Corruption 3% Temperature Hot (266) Movement Walking (120) Location -9/Storage Parts ------- > --- POWER (1) -------- (None) > --- PROPULSION (3) --- Aluminum Leg Improved Aluminum Leg Improved Aluminum Leg > --- UTILITY (3) ------ Large Storage Unit Signal Interpreter Hardened Light Armor Plating > --- WEAPON (2) ------- Beam Rifle Shotgun (fused) > --- INVENTORY (15) --- Light Nuclear Core Aluminum Leg Aluminum Leg Heat Sink Large Storage Unit Signal Interpreter Target Analyzer Light Armor Plating Medium Armor Plating Shield Generator Drone Bay (2/2) Small Laser Heavy Assault Rifle Shock Bomb Launcher Datajack Peak State ------------ > --- POWER ------------ Reinforced Ion Engine > --- PROPULSION ------- Improved Aluminum Leg Improved Aluminum Leg Improved Aluminum Leg > --- UTILITY ---------- Large Storage Unit Signal Interpreter Drone Bay > --- WEAPON ----------- Heavy Assault Rifle Improved Light Cannon > --- INVENTORY -------- Light Nuclear Core Improved Aluminum Leg Improved Aluminum Leg Improved Aluminum Leg Heat Sink Large Storage Unit Signal Interpreter Target Analyzer Light Armor Plating Light Armor Plating Shield Generator Light Assault Rifle Improved Light Cannon Shock Bomb Launcher Datajack [Rating: 21] Favorites ----------- Power Reinforced Ion Engine Engine Reinforced Ion Engine Propulsion Improved Aluminum Leg Treads Improved Treads Leg Improved Aluminum Leg Utility Large Storage Unit Device Heat Sink Storage Large Storage Unit Processor Signal Interpreter Protection Light Armor Plating Weapon Particle Cannon Energy Gun EM Pulse Gun Energy Cannon Particle Cannon Ballistic Gun Shotgun Ballistic Cannon Improved Light Cannon Launcher Shock Bomb Launcher Special Melee Weapon Datajack Build | -11 -10 -9 -9 ------- Run | Yrd Mat Mat Sto Slots Evolved 2 | . . 2 . Power . | . . . . Propulsion 1 | . . 1 . Utility 1 | . . 1 . Weapon . | . . . . Parts Attached 58 | 6 9 14 29 Power 4 | 1 1 . 2 Engine 4 | 1 1 . 2 Core . | . . . . Reactor . | . . . . Propulsion 15 | 2 2 3 8 Treads 5 | . 2 3 . Leg 10 | 2 . . 8 Wheel . | . . . . Hover . | . . . . Flight . | . . . . Utility 19 | 1 4 4 10 Device 8 | . . 3 5 Storage 3 | 1 2 . . Processor 2 | . 2 . . Hackware . | . . . . Protection 6 | . . 1 5 Artifact . | . . . . Weapon 20 | 2 2 7 9 Energy Gun 4 | 1 1 1 1 Energy Cannon 3 | . 1 2 . Ballistic Gun 6 | 1 . 1 4 Ballistic Cannon 3 | . . 2 1 Launcher 2 | . . 1 1 Special Weapon . | . . . . Impact Weapon . | . . . . Slashing Weapon . | . . . . Piercing Weapon . | . . . . Special Melee Weapon 2 | . . . 2 Unidentified Prototypes . | . . . . Parts Lost 23 | . 1 8 14 Power 1 | . . . 1 Propulsion 8 | . . 3 5 Utility 6 | . . 2 4 Weapon 8 | . 1 3 4 Highest Loss Streak 7 | . 1 2 7 To Critical Strikes 1 | . . 1 . Average Slot Usage (%) 94 | . 92 96 94 Engine 10 | . 14 11 9 Treads 14 | . 24 30 1 Leg 15 | . 3 . 29 Device 5 | . . 10 5 Storage 11 | . 14 11 11 Processor 10 | . 7 11 11 Protection 2 | . . . 4 Energy Gun 4 | . 4 5 3 Energy Cannon 5 | . 12 10 . Ballistic Gun 8 | . 10 . 11 Ballistic Cannon 3 | . . 4 3 Naked Turns . | . . . . Heaviest Build 43 | 11 36 41 43 Greatest Support 69 | 20 46 69 43 Greatest Overweight (x) 2 | 2 1 . 2 Average Overweight (x) . | 1 . . . Largest Inventory Capacity 15 | 8 15 15 15 Average Capacity 14 | 7 13 15 15 Most Carried 15 | 8 11 15 15 Average Carried 12 | 5 8 14 14 Final Capacity 15 | 8 15 15 15 Final Carried 15 | 4 11 15 15 Class Distribution -------------------- 100% | Mutant Dominant Class ---------------- Mutant | -10/Materials Mutant | -9/Materials Mutant | -9/Storage Resources | -11 -10 -9 -9 ----------- Run | Yrd Mat Mat Sto Matter Collected 1544 | 209 198 256 881 Remotely . | . . . . Salvage Created 2315 | . 356 641 1318 Parts 148 | . 25 35 88 Haulers Intercepted 1 | . 1 . . Recyclers Shooed 5 | . . . 5 Parts Field Recycled . | . . . . Retrieved Matter . | . . . . Parts Self-Destructed . | . . . . Prevented . | . . . . Kills | -11 -10 -9 -9 ------- Run | Yrd Mat Mat Sto Combat Hostiles Destroyed 57 | . 7 20 30 Guns 27 | . 5 2 20 Cannons 22 | . 2 15 5 AOE 8 | . . 3 5 Classes Destroyed 10 | . 5 2 3 Builder 3 | . . . 3 Hauler 1 | . 1 . . Recycler 2 | . 1 . 1 Mechanic 2 | . . . 2 Drone 1 | . . . 1 Watcher 3 | . 1 1 1 Swarmer 15 | . 3 9 3 Grunt 25 | . 4 6 15 Duelist 1 | . . 1 . Sentry 16 | . . 4 12 Best Kill Streak 10 | . 5 6 10 Combat Bots Only 7 | . 3 6 7 Max Kills in Single Turn 5 | . 2 3 5 Gunslinging . | . . . . Exploded 3 | . . 3 2 Melee . | . . . . Uniques/NPCs Destroyed . | . . . . Combat | -11 -10 -9 -9 -------- Run | Yrd Mat Mat Sto Hostile Shots Fired 352 | . 43 87 222 Missed 78 | . 6 16 56 Damage Taken 3457 | . 401 963 2093 Core 445 | . 42 125 278 Absorbed by Shields 153 | . . . 153 Core Remaining (%) 91 | 100 83 . . Volleys Fired 212 | . 33 49 130 Largest 2 | . 2 2 2 Hottest 133 | . 108 133 79 Shots Fired 360 | . 63 92 205 Gun 206 | . 32 21 153 Cannon 149 | . 31 68 50 Launcher 5 | . . 3 2 Special . | . . . . Kinetic 242 | . 29 29 184 Thermal 100 | . 31 50 19 Explosive . | . . . . Electromagnetic 18 | . 3 13 2 Robot Hit Streak 11 | . 6 9 11 Robot Miss Streak 4 | . 4 3 4 Penetration Max . | . . . . Secondary Targets 1 | . . . 1 Max Gunslinging Chain 1 | . . . 1 Shots Hit Robots 235 | . 34 57 144 Core Hits 110 | . 15 25 70 Critical Kills . | . . . . Critical Parts Destroyed . | . . . . Critical Strikes 3 | . . 1 2 Burn 1 | . . . 1 Blast 2 | . . 1 1 Melee Attacks . | . . . . Impact . | . . . . Slashing . | . . . . Piercing . | . . . . Sneak Attacks . | . . . . Combat Hostiles . | . . . . Follow-up Attacks . | . . . . Damage Inflicted 4557 | . 592 1193 2772 Guns 1970 | . 239 134 1597 Cannons 1978 | . 352 937 689 Explosions 603 | . . 117 486 Melee . | . . . . Ramming 6 | . 1 5 . Kinetic 2673 | . 209 379 2085 Thermal 1362 | . 352 717 293 Explosive 268 | . . . 268 Electromagnetic 248 | . 30 92 126 Impact . | . . . . Slashing . | . . . . Piercing . | . . . . Highest Corruption 3 | . . . 3 Average Corruption 2 | . . . 2 Corruption Purged . | . . . . Corruption Blocked . | . . . . Effects 33 | . . . 33 Message Errors 8 | . . . 8 Matter Fused 7 | . . . 7 Heat Flow Errors 3 | . . . 3 Energy Discharges 3 | . . . 3 Parts Fused 1 | . . . 1 Data Loss (minor) 6 | . . . 6 Misfires 1 | . . . 1 Alerts 1 | . . . 1 Weapon Failures 3 | . . . 3 Overload Shots . | . . . . Overflow Damage 56 | . 17 15 24 Projectiles 35 | . 17 15 3 Explosions 21 | . . . 21 Melee . | . . . . Knockbacks 16 | . . 6 10 Impact . | . . . . Kinetic 13 | . . 6 7 Secondary 3 | . . . 3 Self-Inflicted Damage 111 | . . 33 78 Shots 2 | . . 1 1 Rammed 2 | . 1 1 . Targets Rammed 2 | . 1 1 . Kicked . | . . . . Crushed . | . . . . Highest Temperature 427 | . 427 328 260 Average Temperature 97 | . 149 94 72 Received Heat Transfer 1190 | . 174 174 842 Effects 12 | . 9 1 2 Shutdowns 3 | . 2 1 . Energy Bleed 1 | . 1 . . Interference 3 | . 1 . 2 Short Circuit 1 | . 1 . . Damage (minor) 1 | . 1 . . Damage (major) 3 | . 3 . . Siege Activations . | . . . . Robots Corrupted . | . . . . Combat Hostiles . | . . . . Parts Fried . | . . . . Impact Corruptions . | . . . . Robots Melted . | . . . . Combat Hostiles . | . . . . Parts Melted 7 | . 1 5 1 Heat Transferred 2705 | . 629 1334 742 Parts Sabotaged . | . . . . Parts Stolen . | . . . . Parts Stripped . | . . . . Power Chain Reactions 5 | . . 4 1 Alert | -11 -10 -9 -9 ------- Run | Yrd Mat Mat Sto Peak Influence 516 | . 97 401 516 Initial 169 | . . . 169 Average 184 | . 31 170 268 Maximum Alert Level 2 | . . 2 2 Low Security (%) 48 | 100 100 51 20 Level 1 49 | . . 46 75 Level 2 2 | . . 1 3 Level 3 . | . . . . Level 4 . | . . . . Level 5 . | . . . . High Security . | . . . . Max Security . | . . . . Squads Dispatched 7 | . 1 2 4 Investigation 3 | . . 1 2 Extermination . | . . . . Reinforcement 4 | . 1 1 2 Assault . | . . . . Garrison . | . . . . Intercept . | . . . . Searches Triggered . | . . . . Construction Impeded . | . . . . Haulers Reinforced . | . . . . Active Scanning Responses . | . . . . Cargo Convoy Interrupts . | . . . . Stealth | -11 -10 -9 -9 --------- Run | Yrd Mat Mat Sto Distress Signals 5 | . 2 1 2 Communications Jammed . | . . . . Distress Signals . | . . . . Times Spotted 81 | . 14 29 38 Peak Tracking Total 8 | . 4 8 4 Tactical Retreats 5 | . . 2 3 Traps | -11 -10 -9 -9 ------- Run | Yrd Mat Mat Sto Traps Triggered 5 | . . 1 4 Indirectly . | . . . . Trap Hack Attempts 7 | . . . 7 Triggered . | . . . . Disarmed 4 | . 4 . . Reprogrammed 2 | . . . 2 Reused . | . . . . Traps Extracted . | . . . . Installed . | . . . . Triggered . | . . . . Machines | -11 -10 -9 -9 ---------- Run | Yrd Mat Mat Sto Machines Disabled 5 | . . 3 2 Max in Single Turn 1 | . . 1 1 Garrison Access 1 | . . . 1 Machines Repaired . | . . . . Machines Dismantled . | . . . . Machines Sabotaged . | . . . . Overloaded Fab Kills . | . . . . Hacking | -11 -10 -9 -9 --------- Run | Yrd Mat Mat Sto Machines Accessed 18 | . 3 2 13 Terminals 13 | . 3 1 9 Fabricators . | . . . . Repair Stations 1 | . . . 1 Recycling Units 3 | . . 1 2 Scanalyzers . | . . . . Garrison Access 1 | . . . 1 Total Hacks 44 | . 9 4 31 Successful 24 | . 6 2 16 Failed 20 | . 3 2 15 Catastrophic 5 | . . 1 4 Database Lockouts . | . . . . Manual 17 | . . . 17 Terminals 36 | . 9 3 24 Fabricators . | . . . . Repair Stations 2 | . . . 2 Recycling Units 4 | . . 1 3 Scanalyzers . | . . . . Garrison Access 2 | . . . 2 Terminal Hacks 19 | . 6 1 12 Record 3 | . . 1 2 Part Schematic 1 | . . . 1 Robot Analysis 2 | . . . 2 Open Door 2 | . . . 2 Alert Level 4 | . 1 . 3 Unreport Threat 2 | . 1 . 1 Locate Traps 2 | . 2 . . Disarm Traps 1 | . 1 . . Dispatch Records 1 | . . . 1 Registered Components 1 | . 1 . . Fabricator Hacks . | . . . . Repair Station Hacks 1 | . . . 1 Scan Component 1 | . . . 1 Recycling Unit Hacks 3 | . . 1 2 Report Inventory 3 | . . 1 2 Scanalyzer . | . . . . Garrison Access Hacks 1 | . . . 1 Seal Access 1 | . . . 1 Unauthorized Hacks . | . . . . Terminals . | . . . . Fabricators . | . . . . Repair Stations . | . . . . Recycling Units . | . . . . Scanalyzers . | . . . . Garrison Access . | . . . . Data Cores Recovered . | . . . . Used . | . . . . Hacking Detections 12 | . 3 1 8 Full Trace Events 1 | . . . 1 Feedback Events . | . . . . Feedback Blocked . | . . . . Robot Schematics Acquired . | . . . . Robots Built . | . . . . Authchips . | . . . . Time . | . . . . Total Robot Build Rating . | . . . . Part Schematics Acquired 1 | . . . 1 Parts Built . | . . . . Authchips . | . . . . Time . | . . . . Total Part Build Rating . | . . . . Parts Repaired . | . . . . Time . | . . . . Parts Recycled . | . . . . Recycled Matter . | . . . . Retrieved Matter . | . . . . Retrieved Components . | . . . . Parts Scanalyzed . | . . . . Part Schematics Acquired . | . . . . Parts Damaged . | . . . . Bothacking | -11 -10 -9 -9 ------------ Run | Yrd Mat Mat Sto Used RIF Installer . | . . . . Robots Hacked . | . . . . Non-combat . | . . . . Combat . | . . . . Robot Hacks Applied . | . . . . Relay Couplers Released . | . . . . Fabnet Peak Effective % . | . . . . Robots Rewired . | . . . . Allies Hacked . | . . . . Hacks Repelled . | . . . . Allies | -11 -10 -9 -9 -------- Run | Yrd Mat Mat Sto Total Allies . | . . . . Largest Group . | . . . . Highest-Rated Group . | . . . . Highest-Rated Ally . | . . . . Total Orders 4 | . . . 4 FOLLOW 1 | . . . 1 EXPLORE 2 | . . . 2 RETURN 1 | . . . 1 Ally Attacks . | . . . . Total Damage . | . . . . Kills . | . . . . Allies Corrupted . | . . . . Allies Melted . | . . . . Intel | -11 -10 -9 -9 ------- Run | Yrd Mat Mat Sto Robot Analysis Total 2 | . . . 2 Derelict Logs Recovered . | . . . . Drone Launches 18 | . . . 18 Drone Recoveries 6 | . . . 6 Exploration | -11 -10 -9 -9 ------------- Run | Yrd Mat Mat Sto Turns Passed 3684 | 67 819 993 1805 Spaces Moved 1683 | 43 424 431 785 Core 38 | 38 . . . Treads 847 | . 367 431 49 Legs 798 | 5 57 . 736 Wheels . | . . . . Hover . | . . . . Flight . | . . . . Fastest Speed 50 | 50 120 160 120 Average Speed 151 | 120 157 160 145 Slowest Speed 260 | 150 190 160 260 Overloaded Moves . | . . . . Propulsion Burnouts . | . . . . Robots Hopped . | . . . . Cave-ins Triggered . | . . . . Exploration Rate (%) 43 | 4 34 46 89 Regions Visited 3 Branch Regions 1 Pre-discovered Areas . | . . . . Known Exits Taken 2 | . 1 1 . Unknown Exits Taken 1 | 1 . . . Scrap Searched . | . . . . Spaces Dug . | . . . . Terrain Destroyed 31 | . . 14 17 Melee . | . . . . Projectile 3 | . . 2 1 AOE 28 | . . 12 16 Terrain Rammed . | . . . . Walls Destroyed . | . . . . Machines Disabled . | . . . . Actions | -11 -10 -9 -9 --------- Run | Yrd Mat Mat Sto Total 2471 | 58 517 644 1252 Wait 383 | . 18 119 246 Move 1680 | 42 423 430 785 Hop . | . . . . Pick Up 83 | 10 21 22 30 Fast Attach . | . . . . Attach 38 | 6 5 9 18 Detach . | . . . . Swap 20 | . 4 5 11 Drop 34 | . 12 9 13 Fire 212 | . 33 49 130 Melee . | . . . . Ram . | . . . . Kick . | . . . . Crush 2 | . 1 1 . Escape Stasis . | . . . . Rewire 5 | . . . 5 Trap 7 | . . . 7 Miscellaneous 7 | . . . 7 Route ------- -11/Scrapyard -10/Materials -9/Materials (discovered 2 exits: *Mat / *Sto) -9/Storage History --------- Turn | Location | Event 18 | -11/Scrapyard | Discovered new exit (range 15) 68 | -11/Scrapyard | Entered Materials 254 | -10/Materials | Discovered new exit (range 4) 314 | -10/Materials | Build established: Mutant 505 | -10/Materials | Identified exit to Materials 887 | -10/Materials | Entered another Materials area 887 | -9/Materials | Evolved 2 slots: Propulsion x1, Utility x1 1699 | -9/Materials | Discovered new exit (range 9) 1710 | -9/Materials | Identified exit to Materials 1812 | -9/Materials | Discovered new exit (range 3) 1877 | -9/Materials | Identified exit to Storage 1880 | -9/Materials | Entered Storage 2251 | -9/Storage | Destroyed 7 combat bots 2314 | -9/Storage | Core integrity fell below 50% 2525 | -9/Storage | Lost 7 parts (3n1u3w) 2526 | -9/Storage | Lost 10 allies 2929 | -9/Storage | Core integrity fell below 20% 3685 | -9/Storage | Destroyed by G-34 Mercenary with Small Laser Last Messages --------------- System corrupted: Component data lost. Connecting with Terminal... >>Alert(Check) Current Alert Level: 1-D System corrupted: Energy discharge (-29). Triggered Alarm Trap. An alarm sounds. ALERT: Alarm triggered, dispatching investigation squad. U-05 Engineer lays Concrete. System corrupted: Heat flow error (+265). U-05 Engineer lays Concrete. G-34 Mercenary destroyed. Acquired 18 matter. Overheating: System interference. Shotgun temporarily disabled. Signal Interpreter temporarily disabled. U-05 Engineer destroyed. G-34 Mercenary destroyed. System corrupted: Component data lost. Map ----- +----------------------------------------------------+ | | | | | | | | | | | | | | | | | | | | | | | | | | | | | | | ?????????????????????????????????????????????????? | | ?????????????????????????????????????????????????? | | ???????????????????????????########??????????????? | | ??????????????????????????# ???????????????? | | ??????????????????????????+ ????????????????? | | ??????????????????????????# ?????????????????? | | ??????????????????????????# #???????????####+### | | ??????????????????????????# #???????????# | | ??????????????############# #???????????# """ | | ??????????????# """ """ # #???????????# """ | | ??????????????# """ """ @# #??????????## """ | | ??????????????# """ """!%g= #??????????# | | ??????????????# *%!#u #???????????# """ | | ??????????????# ==# #???????????# """ | | ??????????????# # #???????????# """ | | ??????????????# # #???????????# | | ??????????????############# ###########?###+#### | | #######?????????####T###### # #???# #### | | #????????## # # """" #???# # ! | | "" #????????# # # "??"" #???# # ] | | "" #?????????# # # "???"" ##### # | | "" ##????????# """ """ + + ""???" + +% | | T#????????# """ """ # # ""??" ## # | | ##????????# """ """ # + """" ## # | | #?????????# # # ## ###+ | | "T" #?????????# ^ #% ######+##### #?# | | """ #?????????########+###+###### ! # #?# | | ######????????????????# # = # / #?# | | #############??######### # # # ####?# | | ### #??# # # """"" # = # #????# | | # ! #??## ""%# # %"???" # ]# #????# | | */% #???# T" +%+% "??"" # ] # #????# | | [# #???# "" # # ""??" ######## #????# | | #%""" """ #???# # # "???" #??????# ###### | | +!""" """ ##??# % # # """"" #??????# | +----------------------------------------------------+ Best States ------------- Heat Dissipation 38 Energy Generation 12 Energy Capacity 265 Matter Stores 300 Matter Capacity 300 Sight Range 16 Terrain Scan Density 10 Armor Coverage 150 Evasion (%) 55 Recoil Reduction 3 Item Schematics ----------------- Titanium Leg | -9/Storage | Hacked Robot Schematics ------------------ None Fabricated ------------ Nothing Alien Tech Used ----------------- None Achievements -------------- Backstab Release The Drones! Challenges ------------ None Game ------ Seed AblativeGuidedNetwork Manual? 0 Play Time 01:03:03 Cumulative 12.3 hours Start 2024.04.06 @ 14:48:37 End 2024.04.06 @ 16:08:32 Sessions 1 Manual Loads 0 Difficulty Rogue Special Mode None Game No. 8 Rogue 8 Adventurer 0 Explorer 0 Win Type - Total 0 Types 0/0/0/0/0/0/0/0/0 Lore% 15 Gallery% 12 Achievement% 13 Wizard Run 0 Options --------- Layout 1 ASCII 0 Keyboard 0 Movement Mouse Keybinds 0 Fullscreen 2 Font 20/SmallcapsGlow Map View 54x42 Zoom Use 0% Tactical HUD 0 Map Filters NONE Filters NONE Steam 1 RUN: 4120a157-9464-4164-84fb-61a8a86fdd52